Workbook

Sheet PFP
A1: PROPOSTA FINANCEIRA DE PROJETO | N1: CODIGO:
N2: PFP
A3: NOME DA CONSULTORA:
A5: PROJETO: | F5: OBJETO: | O5: EDITAL:
A6: Região do Baixio do Poço Magro - Guanambi/BA | F6: Elaboração de projeto básico de engenharia para aproveitamento hidro-agrícola, com sistema de abastecimento de água bruta, em benefício de comunidades rurais localizadas no entorno da região do Baixio de Poço do Magro e adjacências, no município de Guanambi, no Estado da Bahia.
A7: SERVIÇOS
A8: CUSTOS DIRETOS | N8: =SUM(N10+N14+N17+N25) -> 102309.84
A9: MOBILIZAÇÃO/DESMOBILIZAÇÃO
A10: A - TOTAL DA MOBILIZAÇÃO/DESMOBILIZAÇÃO | N10: =N11+N12 -> 10942.09
A11: A1 - MOBILIZAÇÃO (PFP-XII) | N11: =PFP_XII_Mobil_Desmob!G39-PFP_XII_Mobil_Desmob!G17*1.25 -> 8875.8025
A12: A2 - DESMOBILIZAÇÃO (PFP-XII) | N12: =PFP_XII_Mobil_Desmob!G39-PFP!N11 -> 2066.2875
A13: MÃO-DE-OBRA
A14: B - TOTAL DE SALÁRIO DA EQUIPE | N14: =SUM(N15:O16) -> 85207.16
A15: B1 - TOTAL SALÁRIOS DA EQUIPE COM VÍNCULO (PFP-I) | N15: ='PFP_I Equip Proj'!D42 -> 85207.16
A16: B2 - TOTAL SALÁRIO DO AUTÔNOMO (PFP-I) | N16: ='PFP_I Equip Proj'!E42 -> 0
A17: B3 - TRANSP., ALIMENT. E MORADIA CONFORME CLT (SOMATÓRIO DA LINHA "C" DOS (PFP-XI)
A18: C - TOTAL DE ENCARGOS SOCIAIS | N18: =SUM(N19:O20) -> 42450.21
A19: C1 - 49,82% INCIDENTE SOBRE O ITEM B1 | N19: ='PFP_I Equip Proj'!F42 -> 42450.21
A20: C2 - 20% INCIDENTE SOBRE O ITEM B2 | N20: ='PFP_I Equip Proj'!G42 -> 0
A21: OUTRAS DESPESAS
A22: D - DESPESAS COM VIAGENS (PFP-II) | N22: ='PFP_II Desp Viagens'!L30 -> 2540
A23: E - SERVIÇOS GRÁFICOS (PFP-III) | N23: ='PFP_III Ser Graf'!G44 -> 1535.59
A24: F - DESPESAS GERAIS (PFP-IV) | N24: ='PFP_IV Desp Gerais'!H42:H42 -> 2085
A25: TOTAL DE OUTRAS DESPESAS | N25: =N22+N23+N24 -> 6160.59
A26: CUSTOS INDIRETOS | N26: =N27+N28+N29 -> 36320.59226
A27: G - CUSTO DE ADMINISTRAÇÃO - (12% DO ITEM B) (PFP-XIII) | N27: ='PFP_XIII_ Det_ custos Adm_'!G36 -> 10224.85
A28: H - REMUNERAÇÃO DA EMPRESA (LUCRO) - (6,74% DOS ITENS A+B+C+D+E+F+G) | N28: =0.0674*(N10+N14+N18+N22+N23+N24+N27) -> 10445.98226
A29: I - DESPESAS FISCAIS - (9,46% = DF' DOS ITENS A+B+C+D+E+F+G+H) (PFP-XIV) | N29: =ROUND((('PFP_XIV Det_ Desp Fiscais'!G37/100)*(PFP!N10+PFP!N14+PFP!N18+PFP!N22+PFP!N23+PFP!N24+PFP!N27+PFP!N28)),2) -> 15649.76 | Q29: =ROUND(((N10+N14+N18+N22+N23+N24+N27+N28)*0.0946),2) -> 15649.76
A30: SUB-TOTAL TOTAL DOS SERVIÇOS | N30: =N8+N26 -> 138630.4323
A31: SERVIÇOS DE CAMPO
A32: J1 - SERVIÇOS TOPOGRÁFICOS (PFP-V) | N32: ='PFP_V Topografia'!G39 -> 90895.15
A33: J2 - SERVIÇOS CARTOGRÁFICOS (PFP-VI) | N33: 0
A34: J3 - SERVIÇOS GEOTÉCNICOS (PFP-VII) | N34: ='PFP_VII Geotecnia'!G67 -> 4675.5
A35: J4 - SERVIÇOS PEDOLÓGICOS (PFP-VIII) | N35: 0
A36: J5 - SERVIÇOS DE VERIFICAÇÃO DE DRENABILIDADE (PFP-IX) | N36: 0
A37: TOTAL DOS SERVIÇOS DE CAMPO | N37: =SUM(N32:O36) -> 95570.65 | Q37: 233907.8984
A38: TOTAL DA PROPOSTA | N38: =N30+N37 -> 234201.0823
A39: NOME DO INFORMANTE: | J39: QUALIFICAÇÃO: | R39: =Q37-N38 -> -293.1838216
A41: ASSINATURA: | N41: DATA:
A43: OBSERVAÇÃO:
A44: ESTE ORÇAMENTO FOI CALCULADO COM OS SEGUINTES % MÁXIMOS DE ENCARGOS SOCIAIS E CUSTOS INDIRETOS:
A45: 1. ENCARGOS SOCIAIS DE AUTÔNOMOS = 20% SOBRE O SALÁRIO MENSAL
A46: 2. ENCARGOS SOCIAIS DA EQUIPE COM VÍNCULO = 49,82% SOBRE O SALÁRIO MENSAL
A47: 3. CUSTO DE ADMINISTRAÇÃO = 12% SOBRE O TOTAL DE SALÁRIOS DA EQUIPE (B1 + B2)
A48: 4. REMUNERAÇÃO DA EMPRESA (LUCRO) = 6,74% SOBRE OS ITENS DE CUSTOS DIRETOS + CUSTO DE ADMINISTRAÇÃO
A49: 5. DF = A SOMA DOS TRIBUTOS (EX: ISS 5,00 + PIS 0,65 + COFINS 3,00 = 8,65%)
A50: 6. DF' = UTILIZADO NA LINHA "I" SERÁ CALCULADO APLICANDO A SEGUINTE FÓRMULA:
A51: DF' = { [ 1 / ( 1 - DF) ] - 1 } x 100
A52: DF' = { [ 1 / ( 1 - 0,0865 ) ] - 1 } x 100
A53: DF' = 0,0946 ou 9,46%

Sheet PFP_I Equip Proj
A1: SALÁRIOS E ENCARGOS DA EQUIPE | G1: CODIGO:
G2: PFP-I
A3: NOME DA CONSULTORA:
A5: PROJETO: | C5: OBJETO: | G5: EDITAL:
A6: =PFP!A6 -> Região do Baixio do Poço Magro - Guanambi/BA | C6: =PFP!F6 -> Elaboração de projeto básico de engenharia para aproveitamento hidro-agrícola, com sistema de abastecimento de água bruta, em benefício de comunidades rurais localizadas no entorno da região do Baixio de Poço do Magro e adjacências, no município de Guanambi, no Estado da Bahia.
A7: SÍMBOLO | B7: TOTAL DE | C7: SALÁRIO | D7: TOTAL CUSTO | E7: TOTAL CUSTO | F7: TOTAL CUSTO | G7: TOTAL CUSTO
B8: HOMENS/MÊS | C8: MENSAL (R$) | D8: SALÁRIOS DE | E8: SALÁRIOS DE | F8: E. SOCIAIS DE | G8: E. SOCIAIS DE
D9: B1 | E9: B2 | F9: B1 | G9: B2
A11: C | B11: 0 | D11: =B11*C11 -> 0 | F11: =D11*0.2 -> 0
A13: P0 | B13: 1 | C13: 20901.92 | D13: =ROUND((B13*C13),2) -> 20901.92 | F13: =D13*'PFP_XV Det_ Enc_ Soc_'!$F$47 -> 10413.33654
A15: P1 | B15: 3 | C15: 15911.57 | D15: =ROUND((B15*C15),2) -> 47734.71 | F15: =ROUND((D15*'PFP_XV Det_ Enc_ Soc_'!$F$47),2) -> 23781.43
A17: P2 | B17: 0 | D17: 0 | F17: =ROUND((D17*'PFP_XV Det_ Enc_ Soc_'!$F$47),2) -> 0
A19: P3 | B19: 0 | D19: 0 | F19: =ROUND((D19*'PFP_XV Det_ Enc_ Soc_'!$F$47),2) -> 0
A21: T0 | B21: 0 | D21: 0 | F21: =ROUND((D21*'PFP_XV Det_ Enc_ Soc_'!$F$47),2) -> 0
A23: T1 | B23: 1 | C23: 4423.28 | D23: 4423.28 | F23: =ROUND((D23*'PFP_XV Det_ Enc_ Soc_'!$F$47),2) -> 2203.68
A25: T1 | B25: 1 | C25: 4423.28 | D25: 4423.28 | F25: =ROUND((D25*'PFP_XV Det_ Enc_ Soc_'!$F$47),2) -> 2203.68
A27: T2 | B27: 1 | C27: 2157.18 | D27: 2157.18 | F27: =ROUND((D27*'PFP_XV Det_ Enc_ Soc_'!$F$47),2) -> 1074.71
A29: T3 | B29: 1 | C29: 3323.27 | D29: 3323.27 | F29: =ROUND((D29*'PFP_XV Det_ Enc_ Soc_'!$F$47),2) -> 1655.65
A31: A1 | B31: 0 | D31: 0 | F31: =ROUND((D31*'PFP_XV Det_ Enc_ Soc_'!$F$47),2) -> 0
A33: A2 | B33: 0 | D33: 0 | F33: =ROUND((D33*'PFP_XV Det_ Enc_ Soc_'!$F$47),2) -> 0
A35: A3 | B35: 1 | C35: 2243.52 | D35: 2243.52 | F35: =ROUND((D35*'PFP_XV Det_ Enc_ Soc_'!$F$47),2) -> 1117.72
A42: TOTAIS | B42: =SUM(B10:B41) -> 9 | D42: =ROUND((SUM(D11:D41)),2) -> 85207.16 | E42: =SUM(E11:E41) -> 0 | F42: =ROUND((SUM(F11:F41)),2) -> 42450.21 | G42: =SUM(G11:G41) -> 0
A43: NOME DO INFORMANTE: | F43: QUALIFICAÇÃO:
A45: ASSINATURA: | G45: DATA:
A47: LEGENDA:
A48: B1 - SALÁRIOS DA EQUIPE EM DIAS ÚTEIS
A49: B2- SALÁRIO DO AUTÔNOMO (CONSULTOR)
A50: OBSERVAÇÃO:
A51: UTILIZAR OS SÍMBOLOS DO FOR PPT-II - EQUIPE TÉCNICA
A52: DETALHAR OS ENCARGOS SOCIAIS NO FOR PPF-XV
A53: NÚMERO DE HORAS TRABALHADAS POR MÊS = 176 (CENTO E SETENTA E SEIS)

Sheet PFP_II Desp Viagens
A1: DESPESAS COM VIAGENS | M1: CODIGO:
M2: PFP-II
A3: NOME DA CONSULTORA:
A5: PROJETO: | D5: OBJETO: | M5: EDITAL:
A6: ='PFP_I Equip Proj'!A6 -> Região do Baixio do Poço Magro - Guanambi/BA | D6: ='PFP_I Equip Proj'!C6 -> Elaboração de projeto básico de engenharia para aproveitamento hidro-agrícola, com sistema de abastecimento de água bruta, em benefício de comunidades rurais localizadas no entorno da região do Baixio de Poço do Magro e adjacências, no município de Guanambi, no Estado da Bahia.
B7: ROTEIRO | C7: PASSAGENS | I7: DIÁRIAS
A8: EQUIPE | C8: AÉREAS | F8: TERRESTRES | I8: NÍVEL SUPERIOR | L8: NÍVEL TÉC/AUX/APOIO
C9: QUANT. | D9: CUSTO (R$) | E9: TOTAL (R$) | F9: QUANT. | G9: CUSTO (R$) | H9: TOTAL (R$) | I9: QUANT. | J9: CUSTO (R$) | K9: TOTAL (R$) | L9: QUANT. | M9: CUSTO (R$) | N9: TOTAL (R$)
A10: P0 | B10: SSA/GUANAMBI/SSA | E10: =C10*D10 -> 0 | F10: 1 | G10: 300 | H10: =F10*G10 -> 300 | I10: 1 | J10: 230 | K10: =I10*J10 -> 230 | L10: 0 | M10: 0 | N10: =L10*M10 -> 0
A11: P1 | B11: SSA/GUANAMBI/SSA | E11: 0 | F11: 3 | G11: 300 | H11: =F11*G11 -> 900 | I11: 3 | J11: 230 | K11: =I11*J11 -> 690 | L11: 0 | M11: 0 | N11: =L11*M11 -> 0
E12: 0 | H12: 0 | K12: =I12*J12 -> 0 | L12: 0 | M12: 0 | N12: =L12*M12 -> 0
E13: 0
A14: P0 | B14: BJL/BAXIO DO POÇO MAGRO/BJL | E14: 0 | F14: 4 | G14: 40 | H14: =F14*G14 -> 160
A15: P1 | B15: BJL/BAXIO DO POÇO MAGRO/BJL | E15: 0 | F15: 2 | G15: 40 | H15: 80 | L15: 0 | M15: 0 | N15: =L15*M15 -> 0
E16: 0
E17: 0
A18: P0 | B18: TAXI | F18: 4 | G18: 30 | H18: =F18*G18 -> 120
A19: P1 | B19: TAXI | F19: 2 | G19: 30 | H19: 60
H22: 0
A29: TOTAIS COM PASSAGENS/DIÁRIAS | C29: =SUM(E10:E28) -> 0 | F29: =SUM(H10:H28) -> 1620 | I29: =SUM(K10:K28) -> 920 | L29: =SUM(N10:N18) -> 0
A30: TOTAL DE DESPESAS COM VIAGENS | L30: =C29+F29+I29+L29 -> 2540
A32: NOME DO INFORMANTE: | G32: QUALIFICAÇÃO:
A33: ASSINATURA: | M33: DATA:
A34: OBSERVAÇÃO:
A35: 1 - INCLUIR AS DESPESAS COM VIAGENS DA EQUIPE DURANTE A EXECUÇÃO DOS SERVIÇOS, INCLUSIVE PARA AS REUNIÕES COM A CODEVASF.
A36: 2 - NÂO INCLUIR AS VIAGENS COM MOBILIZAÇÃO/DESMOBILIZAÇÃO DA EQUIPE
A37: 3 - AS DIÁRIAS COBREM DESPESAS COM TAXI, ALIMENTAÇÃO E HOSPEDAGEM
A38: 4 - TRANSFERIR O TOTAL DAS DESPESAS COM VIAGENS PARA A LINHA "D" DO (FOR PPF-I)
A39: 5 - A LICITANTE DEVERÁ ADAPTAR OS ROTEIROS E VALORES PARA AS SUAS CONDIÇÕES.

Sheet PFP_III Ser Graf
A1: SERVIÇOS GRÁFICOS | G1: CODIGO:
G2: PFP-III
A3: NOME DA CONSULTORA:
A5: PROJETO: | C5: OBJETO: | G5: EDITAL:
A6: ='PFP_II Desp Viagens'!A6:C6 -> Região do Baixio do Poço Magro - Guanambi/BA | C6: ='PFP_I Equip Proj'!C6 -> Elaboração de projeto básico de engenharia para aproveitamento hidro-agrícola, com sistema de abastecimento de água bruta, em benefício de comunidades rurais localizadas no entorno da região do Baixio de Poço do Magro e adjacências, no município de Guanambi, no Estado da Bahia.
A7: DISCRIMINAÇÃO | D7: EXEMPLARES | E7: Nº DE | F7: CUSTOS (R$)
E8: VIAS | F8: UNITÁRIO | G8: TOTAL
A10: Relatório de Reconhecimento | D10: 1 | E10: 1 | F10: 50 | G10: =ROUND((D10*E10*F10),2) -> 50
A11: Cadastro | D11: 1 | E11: 1 | F11: 45.99 | G11: =ROUND((D11*E11*F11),2) -> 45.99
A12: Estudo de concepção | D12: 1 | E12: 2 | F12: 90 | G12: 180
A13: Minuta do projeto básico | D13: 1 | E13: 1 | F13: 160 | G13: 160
A14: Projeto básico final | D14: 1 | E14: 2 | F14: 220 | G14: 440
A15: Orçamento com quantitativos e especificações | D15: 1 | E15: 2 | F15: 40 | G15: 80
A16: Detalhamentos elétricos e estruturais | D16: 1 | E16: 2 | F16: 110 | G16: 220
A17: Estudos Ambientais | D17: 1 | E17: 2 | F17: 110 | G17: 220
A42: SUBTOTAL | G42: =ROUND((SUM(G10:G41)),2) -> 1395.99
A43: RESERVA DE 10% | G43: =ROUND((10%*G42),2) -> 139.6
A44: TOTAL DE SERVIÇOS GRÁFICOS | G44: =ROUND((G42+G43),2) -> 1535.59
A45: NOME DO INFORMANTE: | D45: QUALIFICAÇÃO:
A47: ASSINTATURA: | F47: DATA:
A49: OBSERVAÇÃO:
A50: 1 - CORREPONDEM AOS SERVIÇOS COM IMPRESSÃO DOS RELATÓRIOS.
A51: 2 - RESERVA DE 10% CALCULADO SOBRE O SUBTOTAL PARA IMPRESSÃO DE RELATÓRIOS ESPECÍFICOS EXCEPCIONALMENTE
A52: SOLICITADO PELA CODEVASF

Sheet PFP_IV Desp Gerais
A1: DESPESAS GERAIS | H1: CODIGO:
H2: PFP-IV
A3: NOME DA CONSULTORA:
A5: PROJETO: | C5: OBJETO: | H5: EDITAL:
A6: ='PFP_III Ser Graf'!A6 -> Região do Baixio do Poço Magro - Guanambi/BA | C6: ='PFP_III Ser Graf'!C6 -> Elaboração de projeto básico de engenharia para aproveitamento hidro-agrícola, com sistema de abastecimento de água bruta, em benefício de comunidades rurais localizadas no entorno da região do Baixio de Poço do Magro e adjacências, no município de Guanambi, no Estado da Bahia.
A7: DISCRIMINAÇÃO | E7: UNID. | F7: QUANT. | G7: CUSTOS (R$)
G8: UNITÁRIO | H8: TOTAL
A10: Aluguel e Manutenção de veículo de passeio | E10: MÊS | F10: 1 | G10: 1575 | H10: =ROUND((F10*G10),2) -> 1575
A12: Serviços de Computação | E12: MÊS | F12: 6 | G12: 50 | H12: =ROUND((F12*G12),2) -> 300
A14: Comunicações | E14: MÊS | F14: 6 | G14: 35 | H14: =ROUND((F14*G14),2) -> 210
A42: TOTAL DE DESPESAS GERAIS | H42: =ROUND((SUM(H10:H19)),2) -> 2085
A43: NOME DO INFORMANTE: | F43: QUALIFICAÇÃO:
A45: ASSINATURA: | G45: DATA:
A47: OBSERVAÇÃO:
A48: DESPESAS COM ALUGUEL E MANUTENÇÃO DE VEÍCULOS, SERVIÇOS DE COMPUTAÇÃO E COMUNICAÇÃO (MALOTE, CORREIO ETC.)

Sheet PFP_V Topografia
A1: TOPOGRAFIA | G1: CODIGO:
G2: PFP-V
A3: NOME DA CONSULTORA:
A5: PROJETO: | C5: OBJETO: | G5: EDITAL:
A6: ='PFP_IV Desp Gerais'!A6 -> Região do Baixio do Poço Magro - Guanambi/BA | C6: ='PFP_IV Desp Gerais'!C6:G6 -> Elaboração de projeto básico de engenharia para aproveitamento hidro-agrícola, com sistema de abastecimento de água bruta, em benefício de comunidades rurais localizadas no entorno da região do Baixio de Poço do Magro e adjacências, no município de Guanambi, no Estado da Bahia.
A7: DISCRIMINAÇÃO | D7: UNID. | E7: QUANT. | F7: PREÇOS (R$)
F8: UNITÁRIO | G8: TOTAL
A9: 1 - Amarração Planialtimétrica
A10: 1.1- | B10: Pontos GPS, método estático, com receptores de dupla frequência,para transporte de coordenadas de vértices do IBGE | D10: unid. | E10: 4 | F10: 725.69 | G10: =ROUND((E10*F10),2) -> 2902.76
A11: 1.2- | B11: Poligonais eletrônicas para transporte de coordenadas tipo IIP (ABNT) | D11: km | E11: 0 | F11: 0 | G11: =ROUND((E11*F11),2) -> 0
A12: 1.3 - | B12: Transporte de cotas com Nivelamento geométrico IIN (ABNT) | D12: km | E12: 6.5 | F12: 579.51 | G12: 3766.82
A14: 2.- | B14: Locação e nivelamento de eixos
A15: 2.1 - | B15: Levantamento planialtimétrico cadastral com estação total classe II, com locação de eixo e seções transversais com 10m, para cada lado. | D15: km | E15: 55.55 | F15: 1475.45 | G15: 81961.25
A17: 3 - | B17: Levantamento Planialtimétrico Semi-Cadastral
A18: 3.1 - | B18: Levantamento Planialtimétrico semi-cadastral classe IIPAC | D18: há | E18: 0 | F18: 0 | G18: 0
A20: 4 - | B20: Equipe de topografia
A21: 4.1 - | B21: Equipe de topografia | D21: mês | E21: 0 | F21: 0 | G21: 0
A23: 5 - | B23: Cadastros
A24: 5.1 - | B24: Cadastro da rede existente, com nivelamento classe IIN | D24: km | E24: 0 | F24: 0 | G24: 0
A25: 5.2 - | B25: Cadastro da rede (adutoras, interceptores e emissários) existente, com levantamento topográfico.
A26: 5.3 - | B26: Cadastro físico | D26: unid. | E26: 0 | F26: 0 | G26: 0
A27: 5.4 - | B27: Locação de furos de sondagem para cadastro | D27: unid. | E27: 5 | F27: 16.96 | G27: 84.8
A29: 6 - | B29: Monumentação
A30: 6.1 - | B30: Marcos de concreto | D30: unid. | E30: =56 -> 56 | F30: 38.92 | G30: 2179.52
A31: 6.2 - | B31: Piquetes de madeira | D31: unid. | E31: 0 | F31: 0 | G31: 0
A32: 6.3 - | B32: Barrotes de madeira | D32: unid. | E32: 0 | F32: 0 | G32: 0
A34: 7 - | B34: Batimetria
A35: 7.1 - | B35: Batimetria de seções fluviais | D35: km | E35: 0 | F35: 0 | G35: 0
A37: 7 -
A39: TOTAL DE SERVIÇOS TOPOGRÁFICOS | G39: =ROUND((SUM(G10:G38)),2) -> 90895.15
A41: NOME DO INFORMANTE: | D41: QUALIFICAÇÃO:
A43: ASSINATURA: | F43: DATA:
A45: OBSERVAÇÃO:
A46: NO PREÇO DOS SERVIÇOS TOPOGRÁFICOS, PAGOS A PREÇOS UNITÁRIOS, INCLUEM OS CUSTOS DE MÃO-DE-OBRA,
A47: EQUIPAMENTOS E VEÍCULOS UTILIZADOS NA SUA EXECUÇÃO, BEM COMO CUSTOS DE ADMINISTRAÇÃO E DESPESAS FISCAIS

Sheet PFP_VII Geotecnia
A1: SERVIÇOS GEOTÉCNICOS | G1: CODIGO:
G2: PFP-VII
A3: NOME DA CONSULTORA:
A5: PROJETO: | C5: OBJETO: | G5: EDITAL:
A6: ='PFP_V Topografia'!A6 -> Região do Baixio do Poço Magro - Guanambi/BA | C6: ='PFP_V Topografia'!C6:F6 -> Elaboração de projeto básico de engenharia para aproveitamento hidro-agrícola, com sistema de abastecimento de água bruta, em benefício de comunidades rurais localizadas no entorno da região do Baixio de Poço do Magro e adjacências, no município de Guanambi, no Estado da Bahia.
A7: DISCRIMINAÇÃO | D7: UNID. | E7: QUANT. | F7: PREÇOS (R$)
F8: UNITÁRIO | G8: TOTAL
A9: 1. - SONDAGEM MISTA
A10: 1.1 - Sondagem Rotativa
A11: - Mobilização e desmobilização de equipamentos | D11: equip | G11: =E11*F11 -> 0
A12: - Em granitos, gnaisses, quartzitos e rochas afins | G12: 0
A13: - Ø N | D13: m | G13: 0
A14: - Ø B | D14: m | G14: 0
A15: - Ø N (sondagem em solo) | D15: m | G15: 0
A16: - Deslocamento e instalação do equipamento | G16: 0
A17: - 0 a 200 metros | D17: unid. | G17: 0
A18: - 201 a 500 metros | D18: unid. | G18: 0
A19: - Acima de 500 metros | D19: unid. | G19: 0
A20: 1.2 - Sondagem a Percussão | G20: 0
A21: - Mobilização e desmobilização de equipamentos | D21: equip | E21: 0 | G21: 0
A22: - Sondagem à percussão com SPT | D22: m | E22: 0 | G22: 0
A23: - Deslocamento e instalação de equipamento | G23: 0
A24: - 0 a 200 metros | D24: unid. | E24: 0 | G24: 0
A25: - 201 a 500 metros | D25: unid. | E25: 0 | G25: 0
A26: - Acima de 500 metros | D26: unid. | E26: 0 | G26: 0
A27: 2. - SONDAGEM SÍSMICA DE REFRAÇÃO | D27: km | G27: 0
A28: 3. - SONDAGEM A TRADO (4") | D28: m | E28: 75 | F28: 62.34 | G28: =ROUND((E28*F28),2) -> 4675.5
A29: 3.1 | B29: Deslocamento equip sondagem a trado entre furos | D29: unid. | G29: 0
A30: 4. - POÇOS DE INSPEÇÃO | D30: m | G30: 0 | J30: 1
A31: 5. - ENSAIOS | G31: 0
A32: 5.1 - Ensaios em solos | G32: 0
A33: 5.1.1 - Umidade Natural | D33: ensaio | E33: 0 | G33: 0
A34: 5.1.2 - Densidade Natural | D34: ensaio | E34: 0 | G34: 0
A35: 5.1.3 - Limite de Liquidez | D35: ensaio | E35: 0 | G35: 0
A36: 5.1.4 - Limite de Plasticidade | D36: ensaio | E36: 0 | G36: 0
A37: 5.1.5 - Granulometria por Peneiramento | D37: ensaio | E37: 0 | G37: 0
A38: 5.1.6 - Granulometria por Sedimentação | D38: ensaio | E38: 0 | G38: 0
A39: 5.1.7 - Ensaio compactação Proctor Normal | D39: ensaio | E39: 0 | G39: 0
A40: 5.1.8 - Ensaio compactação Proctor Intermediário | D40: ensaio | G40: 0 | J40: 1500 | K40: 100 | L40: =J40/K40 -> 15
A41: 5.1.9 - Ensaio compactação Proctor Modificado | D41: ensaio | G41: 0
A42: 5.1.9.1 | B42: Índice de Suporte Califórnia ISC c/3 corpos de prova | D42: ensaio | G42: 0
A43: 5.1.9.2 | B43: Índice de Suporte Califórnia ISC c/5 corpos de prova | D43: ensaio | G43: 0
A44: 5.1.8 - Massa Especifica Real dos Grãos | D44: ensaio | E44: 0 | G44: 0
A45: 5.1.9 - Adensamento Oedométrico | D45: ensaio | G45: 0
A46: 5.1.10 - Triaxial (UU) não consolidado não drenado | D46: ensaio | G46: 0
A47: 5.1.11 - Triaxial (CU) consolidado - não drenado | D47: ensaio | G47: 0
A48: 5.1.12 - Expansão | G48: 0
A49: 5.1.12..1Ensaio de colapsividade em anéis de adensamento | D49: =D47 -> ensaio | G49: 0
A50: 5.1.12..2Determinação da pressão de expansão | D50: =D49 -> ensaio | G50: 0
A51: 5.1.13 - Dispersão: | G51: 0
A52: 5.1.13.1 - Granulometria Comparativa | D52: ensaio | G52: 0 | J52: 33000
A53: 5.1.13.2 - Crumb Test | D53: ensaio | G53: 0 | J53: =J52/100 -> 330
A54: 5.1.14. Infiltração | D54: ensaio | G54: 0
A55: 5.1.15 Ensaio de Perda d''água (05 estágios) | D55: ensaio | G55: 0
A56: 5.1.16 - Análise da Areia: | G56: 0
A57: 5.1.16.1 Análise Química da Areia teor de mat orgânica | D57: ensaio | G57: 0
A58: 5.1.16.2 Equivalente de Areia | D58: ensaio | G58: 0
A59: 5.1.17- Mineralogia | D59: ensaio | G59: 0
A60: 5.1.18 - Abrasão "Los Angeles " | D60: ensaio | G60: 0
B61: Índice de lamelaridade | D61: ensaio | G61: 0
A62: 5.1.19 - Reatividade Potencial | D62: ensaio | G62: 0
A63: 5.1.20 - Permeabilidade vertical de carga variável | D63: ensaio | G63: 0
A64: 5.1.21 - Permeabilidade "in situ" | D64: ensaio | E64: 0 | G64: 0
A65: 5.1.22 - Índice de Suporte Califórnia ISC | D65: ensaio | G65: 0
A67: TOTAL DE SERVIÇOS GEOTÉCNICOS | G67: =ROUND((SUM(G10:G66)),2) -> 4675.5
A68: NOME DO INFORMANTE: | D68: QUALIFICAÇÃO:
A70: ASSINATURA: | F70: DATA:
A72: OBSERVAÇÃO:
A73: NO PREÇO DOS SERVIÇOS GEOTÉCNICOS, PAGOS A PREÇOS UNITÁRIOS, INCLUEM OS CUSTOS DE MÃO-DE-OBRA,
A74: EQUIPAMENTOS, VEÍCULOS E LABORATÓRIOS UTILIZADOS NA SUA EXECUÇÃO, BEM COMO CUSTOS DE ADMINISTRAÇÃO E
A75: DESPESAS FISCAIS.

Sheet PFP_X Cronog Financ
A1: CRONOGRAMA FINANCEIRO | H1: CODIGO:
H2: PFP-X
A3: NOME DA CONSULTORA:
A5: PROJETO: | C5: OBJETO: | H5: EDITAL:
A6: ='PFP_VII Geotecnia'!A6:B6 -> Região do Baixio do Poço Magro - Guanambi/BA | C6: ='PFP_VII Geotecnia'!C6:F6 -> Elaboração de projeto básico de engenharia para aproveitamento hidro-agrícola, com sistema de abastecimento de água bruta, em benefício de comunidades rurais localizadas no entorno da região do Baixio de Poço do Magro e adjacências, no município de Guanambi, no Estado da Bahia.
A7: Nº | B7: TAREFA | C7: RELATÓRIO/SERVIÇO DE CAMPO | F7: DIAS CORRIDOS | G7: SERVIÇOS PAGOS
G8: A PREÇO GLOBAL(R$) | H8: A PREÇO UNITÁRIO (R$)
A9: 1 | B9: Entrega do estudo de concepção, Diagnóstico | F9: 30 | G9: =PFP!N11+(PFP!N14+PFP!N18)/6 -> 30152.03083
A10: 2 | B10: Serviços topográficos | F10: 60 | G10: =(PFP!N32+PFP!N14+PFP!N18+PFP!N25+PFP!N26)/6 -> 43505.61704
A11: 3 | B11: Serviços geotécnicos | F11: 75 | G11: =PFP!N34+(PFP!N32+PFP!N14+PFP!N18+PFP!N25+PFP!N26)/6 -> 48181.11704
A12: 4 | B12: Minuta do projeto básico | F12: 120 | G12: =(PFP!N14+PFP!N18+PFP!N26)/6 -> 27329.66038
A13: 5 | B13: Entrega dos estudos complementares | F13: 135 | G13: =(PFP!N14+PFP!N18+PFP!N26)/6 -> 27329.66038
A14: 6 | B14: Projeto básico | F14: 155 | G14: =(PFP!N14+PFP!N18+PFP!N25+PFP!N26+PFP!N32)/6 -> 43505.61704
A15: 7 | B15: Orçamento | F15: 180 | G15: =PFP!N38-'PFP_X Cronog Financ'!G9-'PFP_X Cronog Financ'!G10-'PFP_X Cronog Financ'!G11-'PFP_X Cronog Financ'!G12-'PFP_X Cronog Financ'!G13-'PFP_X Cronog Financ'!G14 -> 14197.37954
A16: 8
A17: 9
A18: 10
A19: 11
A20: 12
A21: 13
A22: 14
A39: TOTAL DA FOLHA | G39: =SUM(G9:G38) -> 234201.0823 | H39: =SUM(H9:H38) -> 0
A40: NOME DO INFORMANTE: | D40: QUALIFICAÇÃO:
A42: ASSINATURA: | F42: DATA:
A44: OBSERVAÇÃO:
A45: O CRONOGRAMA FINANCEIRO DEVERÁ ESTAR COMPATÍVEL COM O CRONOGRAMA FÍSICO (FOR PPT-V)

Sheet PFP_XII_Mobil_Desmob
B2: Ministério da Integração Nacional – MI
B3: Companhia de Desenvolvimento dos Vales do São Francisco e do Parnaíba
B4: 2ª SUPERINTENDÊNCIA REGIONAL
A5: Serviço: | B5: =PFP!F6 -> Elaboração de projeto básico de engenharia para aproveitamento hidro-agrícola, com sistema de abastecimento de água bruta, em benefício de comunidades rurais localizadas no entorno da região do Baixio de Poço do Magro e adjacências, no município de Guanambi, no Estado da Bahia.
A6: Local: | B6: =PFP!A6 -> Região do Baixio do Poço Magro - Guanambi/BA
A9: DETALHAMENTO DO CUSTO DE MOBILIZAÇÃO/DESMOBILIZAÇÃO | G9: CODIGO:
G10: PFP-XII
A11: NOME DA CONSULTORA:
A13: PROJETO: | B13: =PFP!A6 -> Região do Baixio do Poço Magro - Guanambi/BA | C13: OBJETO: | D13: =PFP!F6 -> Elaboração de projeto básico de engenharia para aproveitamento hidro-agrícola, com sistema de abastecimento de água bruta, em benefício de comunidades rurais localizadas no entorno da região do Baixio de Poço do Magro e adjacências, no município de Guanambi, no Estado da Bahia. | G13: EDITAL:
B15: DISCRIMINAÇÃO | D15: un | E15: Coef | F15: P. Unit. | G15: P. Total
B16: Veículo pick-up 4x4 cabine dupla | D16: mês | E16: 1 | F16: ='COMP PICK'!D46 -> 5089.06153 | G16: =ROUND((F16*E16),2) -> 5089.06
B17: Mobilização/Desmobilização para interior | D17: un | E17: 1 | F17: 1653.03 | G17: =ROUND((F17*E17),2) -> 1653.03
B18: Hospedagem | D18: mês | E18: 6 | F18: 700 | G18: 4200
B21: Custo Direto Total | G21: =ROUND((SUM(G16:G18)),2) -> 10942.09
B22: Taxa de BDI %
B23: Total da Composição | G23: =ROUND((SUM(G21:G22)),2) -> 10942.09
B39: TOTAIS DO CUSTO DE MOBILIUZAÇÃO/DESMOBILIZAÇÃO | G39: =G23 -> 10942.09
A41: NOME DO INFORMANTE: | D41: QUALIFICAÇÃO:
A42: ASSINATURA: | F42: DATA:
A43: OBSERVAÇAO:

Sheet PFP_XIII_ Det_ custos Adm_
A1: DETALHAMENTO DO CUSTO DE ADMINISTRAÇÃO | G1: CODIGO:
G2: PFP-XIII
A3: NOME DA CONSULTORA:
A5: PROJETO: | C5: OBJETO: | G5: EDITAL:
A6: ='PFP_X Cronog Financ'!A6:B6 -> Região do Baixio do Poço Magro - Guanambi/BA | C6: ='PFP_X Cronog Financ'!C6:G6 -> Elaboração de projeto básico de engenharia para aproveitamento hidro-agrícola, com sistema de abastecimento de água bruta, em benefício de comunidades rurais localizadas no entorno da região do Baixio de Poço do Magro e adjacências, no município de Guanambi, no Estado da Bahia.
A7: DISCRIMINAÇÃO | F7: VALORES
F8: % | G8: R$
A9: 1 | B9: Custos da equipe da administração central da empresa consultora ( diretoria, pessoal técnico de apoio e pessoal administrativo não diretamente vinculado à prestação dos serviços) | F9: 0.09 | G9: =ROUND((F9*PFP!$N$14),2) -> 7668.64
A10: 2 | B10: Outras despesas que afetam o custo de produção como: avaliação do concreto com ensaios, análises de água, treinamento, biblioteca, programa de qualidade, auditoria interna e externa | F10: 0.02 | G10: =ROUND((F10*PFP!$N$14),2) -> 1704.14
A11: 3 | B11: Despesas com aluguéis, comunicação, manutenção e transporte não diretamente relacionados com o custo direto dos serviços | F11: 0.01 | G11: =ROUND((F11*PFP!$N$14),2) -> 852.07
A12: 4
A13: 5
B36: TOTAIS DO CUSTO DE ADMINISTRAÇÃO | F36: =SUM(F9:F35) -> 0.12 | G36: =ROUND((SUM(G9:G35)),2) -> 10224.85
A38: NOME DO INFORMANTE: | D38: QUALIFICAÇÃO:
A39: ASSINATURA: | F39: DATA:
A40: OBSERVAÇAO:

Sheet PFP_XIV Det_ Desp Fiscais
A1: DETALHAMENTO DE DESPESAS FISCAIS | H1: CODIGO:
H2: PFP-XIV
A3: NOME DA CONSULTORA:
A5: PROJETO: | C5: OBJETO: | H5: EDITAL:
A6: ='PFP_XIII_ Det_ custos Adm_'!A6 -> Região do Baixio do Poço Magro - Guanambi/BA | C6: ='PFP_XIII_ Det_ custos Adm_'!C6 -> Elaboração de projeto básico de engenharia para aproveitamento hidro-agrícola, com sistema de abastecimento de água bruta, em benefício de comunidades rurais localizadas no entorno da região do Baixio de Poço do Magro e adjacências, no município de Guanambi, no Estado da Bahia.
A7: DISCRIMINAÇÃO | F7: VALORES
F8: DF % | G8: DF' % | H8: R$
A10: 1 - ISS | F10: 5 | G10: =ROUND(((1/(1-$F$37/100))*F10),2) -> 5.47 | H10: =ROUND((F10/($F$10+$F$11+$F$12)*$H$37),2) -> 9046.1
A11: 2 - PIS | F11: 0.65 | G11: =ROUND(((1/(1-$F$37/100))*F11),2) -> 0.71 | H11: =ROUND((F11/($F$10+$F$11+$F$12)*$H$37),2) -> 1175.99
A12: 3 - COFINS | F12: 3 | G12: 3.28 | H12: =ROUND((F12/($F$10+$F$11+$F$12)*$H$37),2) -> 5427.66
J15: =SUM(H10:H12) -> 15649.75
A37: TOTAIS DE DESPESAS FISCAIS | F37: =ROUND((F10+F11+F12),2) -> 8.65 | G37: =ROUND((G10+G11+G12),2) -> 9.46 | H37: =PFP!N29 -> 15649.76
A38: NOME DO INFORMANTE: | D38: QUALIFICAÇÃO:
A40: ASSINATURA: | F40: DATA:
A42: Observação:
A43: As despesas fiscais (DF) incidem sobre o total da fatura e não sobre os custos incorridos. Portanto aplicar a seguinte fórmula:
A44: DF' = { [ 1 / ( 1 - DF ) ] - 1 } x 100
A45: ou seja, para o valor máximo de 8,65%, o valor a ser aplicado na composição dos preços será:
A46: DF' = { [ 1 / ( 1 - 00865 ) ] - 1 } x 100
A47: DF' =0,0946 ou 9,46%

Sheet PFP_XV Det_ Enc_ Soc_
A1: DETALHAMENTO DOS ENCARGOS SOCIAIS | G1: CODIGO:
G2: PFP-XV
A3: NOME DA CONSULTORA:
A5: PROJETO: | C5: OBJETO: | G5: EDITAL:
A6: ='PFP_XIV Det_ Desp Fiscais'!A6:B6 -> Região do Baixio do Poço Magro - Guanambi/BA | C6: ='PFP_XIV Det_ Desp Fiscais'!C6:G6 -> Elaboração de projeto básico de engenharia para aproveitamento hidro-agrícola, com sistema de abastecimento de água bruta, em benefício de comunidades rurais localizadas no entorno da região do Baixio de Poço do Magro e adjacências, no município de Guanambi, no Estado da Bahia.
A7: DISCRIMINAÇÃO | F7: VALORES
F8: % | G8: R$
A9: A | B9: ENCARGOS SOCIAIS BÁSICOS
A10: A1 | B10: INSS | F10: 0 | G10: =F10*'PFP_I Equip Proj'!$D$42 -> 0
A11: A2 | B11: SESI | F11: 0.015 | G11: =F11*'PFP_I Equip Proj'!$D$42 -> 1278.1074
A12: A3 | B12: SENAI | F12: 0.01 | G12: =F12*'PFP_I Equip Proj'!$D$42 -> 852.0716
A13: A4 | B13: INCRA | F13: 0.002 | G13: =F13*'PFP_I Equip Proj'!$D$42 -> 170.41432
A14: A5 | B14: SEBRAE | F14: 0.006 | G14: =F14*'PFP_I Equip Proj'!$D$42 -> 511.24296
A15: A6 | B15: Salário Educação | F15: 0.025 | G15: =F15*'PFP_I Equip Proj'!$D$42 -> 2130.179
A16: A7 | B16: Seguro contra acidentes de trabalho | F16: 0.03 | G16: =F16*'PFP_I Equip Proj'!$D$42 -> 2556.2148
A17: A8 | B17: FGTS | F17: 0.08 | G17: =F17*'PFP_I Equip Proj'!$D$42 -> 6816.5728
A18: A9 | B18: SECONCI | F18: 0 | G18: =F18*'PFP_I Equip Proj'!$D$42 -> 0
A19: SUBTOTAL DE "A" | F19: =ROUND(SUM(F10:F18),4) -> 0.168 | G19: =ROUND((SUM(G10:G18)),2) -> 14314.8
A21: B | B21: ENCARGOS SOCIAIS QUE RECEBEM INCIDÊNCIA DE "A"
A22: B1 | B22: Repouso Semanal Remunerado | F22: Não incide | G22: Não incide
A23: B2 | B23: Feriados | F23: Não incide | G23: Não incide
A24: B3 | B24: Auxílio - Enfermidade | F24: 0.007 | G24: =F24*'PFP_I Equip Proj'!$D$42 -> 596.45012
A25: B4 | B25: 13º Salário | F25: 0.0833 | G25: =F25*'PFP_I Equip Proj'!$D$42 -> 7097.756428
A26: B5 | B26: Licença Paternidade | F26: 0.0005 | G26: =F26*'PFP_I Equip Proj'!$D$42 -> 42.60358
A27: B6 | B27: Faltas Justificadas | F27: 0.0056 | G27: =F27*'PFP_I Equip Proj'!$D$42 -> 477.160096
A28: B7 | B28: Dias de Chuvas | F28: Não incide | G28: Não incide
A29: B8 | B29: Auxílio Acidente do Trabalho | F29: 0.0008 | G29: =F29*'PFP_I Equip Proj'!$D$42 -> 68.165728
A30: B9 | B30: Férias Gozadas | F30: 0.0779 | G30: =F30*'PFP_I Equip Proj'!$D$42 -> 6637.637764
A31: B10 | B31: Salário Maternidade | F31: 0.0002 | G31: =F31*'PFP_I Equip Proj'!$D$42 -> 17.041432
A32: SUBTOTAL DE "B" | F32: =SUM(F22:F31) -> 0.1753 | G32: =ROUND((SUM(G22:G31)),2) -> 14936.82
A34: C | B34: ENCARGOS SOCIAIS QUE NÃO RECEBEM INCIDÊNCIA DE "A"
A35: C1 | B35: Aviso Prévio Indenizado | F35: 0.0495 | G35: =F35*'PFP_I Equip Proj'!$D$42 -> 4217.75442
A36: C2 | B36: Aviso Prévio Trabalhado | F36: 0.0012 | G36: =F36*'PFP_I Equip Proj'!$D$42 -> 102.248592
A37: C3 | B37: Férias Indenizadas | F37: 0.0278 | G37: =F37*'PFP_I Equip Proj'!$D$42 -> 2368.759048
A38: C4 | B38: Depósito Rescisão Sem Justa Causa | F38: 0.0385 | G38: =F38*'PFP_I Equip Proj'!$D$42 -> 3280.47566
A39: C5 | B39: Indenização Adicional | F39: 0.0042 | G39: =F39*'PFP_I Equip Proj'!$D$42 -> 357.870072
A40: SUBTOTAL DE "C" | F40: =ROUND(SUM(F35:F39),4) -> 0.1212 | G40: =ROUND((SUM(G35:G39)),2) -> 10327.11
A42: D | B42: REINCIDÊNCIAS
A43: D1 | B43: Reincidência de Grupo "A" sobre Grupo "B" | F43: =ROUND((F19*F32),4) -> 0.0295 | G43: =F43*'PFP_I Equip Proj'!$D$42 -> 2513.61122
A44: D2 | B44: Reincidência de Grupo "A" sobre Aviso Prévio Trabalhado e Reincidência do FGTS sobre Aviso Prévio Indenizado | F44: 0.0042 | G44: =F44*'PFP_I Equip Proj'!$D$42 -> 357.870072
A45: SUBTOTAL DE "D" | F45: =ROUND((F44+F43),4) -> 0.0337 | G45: =ROUND((SUM(G43:G44)),2) -> 2871.48
A47: TOTAIS DE ENCARGOS SOCIAIS | F47: =ROUND(F19+F32+F40+F45,4) -> 0.4982 | G47: =ROUND((G19+G32+G40+G45),2) -> 42450.21
A48: NOME DO INFORMANTE: | D48: QUALIFICAÇÃO:
A49: ASSINATURA: | F49: DATA:
A50: Observação:

Sheet PTP_I Ficha Cur_
A1: FICHA CURRICULAR | I1: CODIGO:
I2: PTP-I
A3: NOME DA CONSULTORA:
A5: PROJETO: | D5: OBJETO: | I5: EDITAL:
A6: =PFP!A6 -> Região do Baixio do Poço Magro - Guanambi/BA | D6: =PFP!F6 -> Elaboração de projeto básico de engenharia para aproveitamento hidro-agrícola, com sistema de abastecimento de água bruta, em benefício de comunidades rurais localizadas no entorno da região do Baixio de Poço do Magro e adjacências, no município de Guanambi, no Estado da Bahia.
A7: NOME DO TÉCNICO:
A9: FUNÇÃO NO PROJETO: | D9: ATUAÇÃO: | F9: DATA NASCIMENTO: | H9: NACIONALIDADE:
D10: ( ) PERM. | E10: ( ) EVENT.
A11: INSTRUÇÃO
A12: ESCOLARIDADE | D12: ESTABELECIMENTO | F12: LOCAL | H12: DURAÇÃO | I12: ANO CONCLUSÃO
A23: ANO | B23: EXPERIÊNCIA PROFISSIONAL
A50: CONCORDO EM PARTICIAPAR DESTE OBJETO (ASSINATURA DO TÉCNICO): | F50: Nº DO REGISTRO PROFISSIONAL:
A52: NOME DO INFORMANTE: | F52: QUALIFICAÇÃO:
A54: ASSINATURA: | H54: DATA:
A56: OBSERVAÇÃO:
A57: 1 - JUNTAR OS COMPROVANTES DE ESCOLARIDADE (GRADUAÇÃO, ESPECIALIZAÇÃO, MESTRADO E DOUTORADO, SE FOR O CASO)
A58: 2 - RELACIONAR AS ATIVIDADES REPRESENTATIVAS DA EXPERIÊNCIA PROFISSIONAL COM DESTAQUE PARA OS SERVIÇOS SIMILARES AO
A59: OBJETO.
A60: 3 - JUNTAR OS COMPROVANTES DA EXPERIÊNCIA PROFISSIONAL, CERTIFICADOS PELA UNIDADE PROFISSIONAL COMPETENTE.

Sheet PTP_II EQUIPE TÉCNICA
A1: EQUIPE TÉCNICA DE PROJETO | I1: CODIGO:
I2: PTP-II
A3: NOME DA CONSULTORA:
A5: PROJETO: | D5: OBJETO: | I5: EDITAL:
A6: =PFP!A6 -> Região do Baixio do Poço Magro - Guanambi/BA | D6: =PFP!F6 -> Elaboração de projeto básico de engenharia para aproveitamento hidro-agrícola, com sistema de abastecimento de água bruta, em benefício de comunidades rurais localizadas no entorno da região do Baixio de Poço do Magro e adjacências, no município de Guanambi, no Estado da Bahia.
A7: CATEGORIA | D7: SÍMBOLO | E7: PROFISSÃO/FUNÇÃO | G7: QUANT, | H7: HOMENS | I7: ATUAÇÃO
H8: MÊS | I8: ( ) P ( ) E
A9: NÍVEL SUPERIOR
A10: Profissional Master | D10: C | E10: Consultor
A11: Profissional Sênior Coord. | D11: P0 | E11: Coordenador Geral (Eng Sênior) | G11: 1
A12: Profissional Sênior | D12: P1 | E12: Eng Pleno | G12: 3
A13: Profissional Médio | D13: P2 | E13: Eng Médio
A14: Profissional Júnior | D14: P3 | E14: Eng Júnior
A15: Profissional Trainee | D15: P4 | E15: Eng Trainee
A16: NÍVEL TÉCNICO
A17: Técnico Sênior Coordenador | D17: T0 | E17: Topógrafo Sênior Coordenador
A18: Técnico Sênior Coordenador | D18: T0 | E18: Laboratorista de Solos Coord.
A19: Técnico Sênior Coordenador | D19: T0 | E19: Laboratorista de Concr. Coord.
A20: Técnico Sênior Coordenador | D20: T0 | E20: Técnico Segurança Trab. Coord.
A21: Técnico Sênior Coordenador | D21: T0 | E21: Técnico Meio Ambiente Coord.
A22: Técnico Sênior Coordenador | D22: T0 | E22: Operador de DGPS
A23: Técnico Sênior | D23: T1 | E23: Topógrafo Sênior | G23: 1
A24: Técnico Sênior | D24: T1 | E24: Cadista/Projetista Sênior
A25: Técnico Sênior | D25: T1 | E25: Laboratorista de Solos Sênior | G25: 1
A26: Técnico Sênior | D26: T1 | E26: Laboratorista de Concreto Sênior
A27: Técnico Sênior | D27: T1 | E27: Inspetor de Solo/Concreto Sênior
A28: Técnico Sênior | D28: T1 | E28: Técnico Segurança Trabalho
A29: Técnico Sênior | D29: T1 | E29: Técnico Desmonte Rocha
A30: Técnico Sênior | D30: T1 | E30: Técnico de Edificações
A31: Técnico Sênior | D31: T1 | E31: Documentador
A32: Técnico Sênior | D32: T1 | E32: Modelista
A33: Técnico Médio | D33: T2 | E33: Topógrafo Médio
A34: Técnico Médio | D34: T2 | E34: Cadista/Desenhista | G34: 1
A35: Técnico Médio | D35: T2 | E35: Aux. Laboratório de Solo/Concret.
A36: Técnico Médio | D36: T2 | E36: Nivelador
A37: Técnico Médio | D37: T2 | E37: Técnico de Estrada/Agrônomo
A38: Técnico Júnior | D38: T3 | E38: Auxiliar de Topógrafo | G38: 1
A39: Técnico Júnior | D39: T3 | E39: Auxiliar de Laborat. Sol./Concr.
A40: NÍVEL AUXILIAR
A41: Auxiliar Sênior | D41: A1 | E41: Assistente Administrativo
A42: Auxiliar Médio | D42: A2 | E42: Ajudante Administrativo
A43: Auxiliar Júnior | D43: A3 | E43: Auxiliar Administrativo | G43: 1
A44: APOIO
A45: Operário não Qualificado | D45: OP | E45: Servente/Faxineira
A46: Operário não Qualificado | D46: OP | E46: Auxiliar de Campo
A47: NOME DO INFORMANTE: | F47: QUALIFICAÇÃO:
A49: ASSINATURA: | H49: DATA:
A51: OBSERVAÇÃO:
A52: 2 - O SÍMBOLO “P” SERÁ USADO PARA TODOS DE NÍVEL SUPERIOR, INCLUSIVE COORDENADOR E SUPERVISOR
A53: 2 - O SÍMBOLO “T” SERÁ USADO PARA TODOS DE NÍVEL MÉDIO, INCLUSIVE TOPÓGRAFOS, LABORATORISTAS, CADISTAS, ETC.
A54: 3 - O SÍMBOLO “A” INCLUI AUXILIARES DE CAMPO, DE LABORATÓRIO, SECRETÁRIAS, DIGITADORES, ARQUIVISTAS. ETC.
A55: 4 - CATEGORIA MASTER (EXPERIÊNCIA ACIMA DE 10 ANOS)
A56: 5- CATEGORIA SÊNIOR (EXPERIÊNCIA ACIMA DE 10 ANOS)
A57: 6 - CATEGORIA MÉDIO (EXPERIÊNCIA > 5 < 10 ANOS)
A58: 7- CATEGORIA JÚNIOR (EXPERIÊNCIA > 2 < 5 ANOS)
A59: 8 - CATEGORIA TRAINEE (EXPERIÊNCIA > 6 MESES < 2 ANOS)

Sheet PTP_III Cronog Per NS
A1: CRONOGRAMA DE PERMANÊNCIA - NÍVEL SUPERIOR | J1: CODIGO:
J2: PTP-III
A4: NOME DA CONSULTORA:
A6: PROJETO: | C6: OBJETO: | K6: EDITAL:
A7: ='PFP_XIV Det_ Desp Fiscais'!A6:B6 -> Região do Baixio do Poço Magro - Guanambi/BA | C7: =PFP!F6 -> Elaboração de projeto básico de engenharia para aproveitamento hidro-agrícola, com sistema de abastecimento de água bruta, em benefício de comunidades rurais localizadas no entorno da região do Baixio de Poço do Magro e adjacências, no município de Guanambi, no Estado da Bahia.
A9: TAREFA | B9: EQUIPE PROPOSTA | E9: LOCAL | F9: ATUAÇÃO | H9: NÚMERO DE HOMENS/MÊS
B10: ESPECIALIDADE | C10: PROFISSÃO | D10: FUNÇÃO | E10: TRABALHO | F10: INIC. | G10: FIM | H10: C | I10: P0 | J10: P1 | K10: P2 | L10: P3 | M10: P4
A49: TOTAL DE HOMENS MÊS POR CATEGORIA
A50: NOME DO INFORMANTE: | F50: QUALIFICAÇÃO:
A52: ASSINATURA: | H52: DATA:
A54: OBSERVAÇÃO:

Sheet PTP_IV Cronog Per NT e A
A1: CRONOGRAMA DE PERMANÊNCIA - NÍVELTÉC. E AUXILIAR | L1: CODIGO:
L2: PTP-IV
A3: NOME DA CONSULTORA:
A5: PROJETO: | C5: OBJETO: | M5: EDITAL:
A6: ='PFP_XV Det_ Enc_ Soc_'!A6 -> Região do Baixio do Poço Magro - Guanambi/BA | C6: ='PFP_XV Det_ Enc_ Soc_'!C6:F6 -> Elaboração de projeto básico de engenharia para aproveitamento hidro-agrícola, com sistema de abastecimento de água bruta, em benefício de comunidades rurais localizadas no entorno da região do Baixio de Poço do Magro e adjacências, no município de Guanambi, no Estado da Bahia.
A7: TAREFA | B7: EQUIPE PROPOSTA | E7: LOCAL | F7: ATUAÇÃO | H7: NÚMERO DE HOMENS/MÊS
B8: ESPECIALIDADE | C8: PROFISSÃO | D8: FUNÇÃO | E8: TRABALHO | F8: INIC. | G8: FIM | H8: T0 | I8: T1 | J8: T2 | K8: T3 | L8: A1 | M8: A2 | N8: A3 | O8: OP
A47: TOTAL DE HOMENS MÊS POR CATEGORIA
A48: NOME DO INFORMANTE: | F48: QUALIFICAÇÃO:
A50: ASSINATURA: | M50: DATA:
A52: OBSERVAÇÃO:

Sheet PTP_V Cronog Físico
A1: CRONOGRAMA FÍSICO | AC1: CODIGO:
AC2: PTP-V
A3: NOME DA CONSULTORA:
A5: PROJETO: | I5: OBJETO: | AE5: EDITAL:
A6: ='PTP_IV Cronog Per NT e A'!A6:B6 -> Região do Baixio do Poço Magro - Guanambi/BA | I6: =PFP!F6 -> Elaboração de projeto básico de engenharia para aproveitamento hidro-agrícola, com sistema de abastecimento de água bruta, em benefício de comunidades rurais localizadas no entorno da região do Baixio de Poço do Magro e adjacências, no município de Guanambi, no Estado da Bahia.
A7: SEQ | B7: COD. | D7: TAREFA/ATIVIDADE | H7: DURAÇÃO | I7: DATA | K7: MÊS1 | M7: MÊS2 | O7: MÊS3 | Q7: MÊS4 | S7: MÊS5 | U7: MÊS6 | W7: MÊS7 | Y7: MÊS8 | AA7: MÊS9 | AC7: MÊS10 | AE7: MÊS11 | AG7: MÊS12
H8: (DIAS) | I8: INIC. | J8: FIM
A44: NOME DO INFORMANTE: | Q44: QUALIFICAÇÃO:
A46: ASSINATURA: | Z46: DATA:
A48: LEGENDA:

Sheet Reajustamento
A2: REAJUSTAMENTO - MEMÓRIA DE CALCULO
B6: Período de referência dos índices:
B7: i - AGOSTO/2017 | D7: Mês de aniversário da Proposta
B8: o - AGO/2015 | D8: Mês de apresentação da Proposta
A10: I. | B10: Formulário:
B13: sendo;
B14: R - Valor do reajustamento
B15: V - Valor a ser reajustado
A17: 1. | B17: A0157980 - Serviços de Consultoria (Coluna 39 da FGV- INCC)
B19: Ei | C19: 216.619 | E19: = | F19: =((C19-C20)/C20) -> 0.06012734115
B20: Eo | C20: 204.333
A22: Portanto:
C23: R = V * | D23: =F19 -> 0.06012734115
B25: Valor Reajustado:
B27: Saldo Reajustado | D27: =ROUND((D25*D23),2) -> 0
B29: Valor Reajustado + Saldo Reajustado | D29: =D25+D27 -> 0

Sheet COMP PICK
C1: COMP. AUX. VEÍCULO
B2: CODEVASF
B4: (B11) Hilux CD SR 3.0 diesel 4x4 163cv
B6: A | C6: Depreciação mensal do equipamento
B7: A1 | C7: Preço de Aquisição | D7: 118286
B8: A2 | C8: Tempo previsto de vida útil (meses) | D8: 36
B9: A3 | C9: Previsão de recup. Na venda do bem usado | D9: 0.4
B10: A4 | C10: Custo mensal [A1-(A3xA1)]/A2 | D10: =(D7-(D9*D7))/D8 -> 1971.433333
B12: B | C12: Juros pelo Capital empregado
B13: B1 | C13: Taxa mensal de Juros | D13: 0.05
B14: B2 | C14: Juros s/depreciação/aluguel (B1xA4) | D14: =D13*D10 -> 98.57166667
B16: C | C16: Conservação e manutenção
B17: C1 | C17: Taxa de gastos s/a deprec. Inc. seguros (%) | D17: 1
B18: C2 | C18: Incidência mensal (C1xA4) | D18: =D17*D10 -> 1971.433333
B20: D | C20: Combustível
B21: D1 | C21: Média mensal de quilômetro por veículo | D21: 2500
B22: D2 | C22: Preço do litro de combustível | D22: =[1]INSUMOS!E25 -> 3.85
B23: D3 | C23: Quilômetros rodados com um litro combustivel | D23: 10
B24: D4 | C24: Combustivel (D1/D3)*D2 | D24: =(D21/D23)*D22 -> 962.5
B26: E | C26: Lubrificantes
B27: E1 | C27: Quilometragem do Contrato | D27: =D21*4 -> 10000
B28: E2 | C28: Franquia por troca de óleo (km) | D28: 5000
B29: E3 | C29: Preço do litro de óleo | D29: 24.53
B30: E4 | C30: Quantidade de litros de óleo por troca | D30: 3.5
B31: E5 | C31: Quantidade de dias do Contrato | D31: 365
B32: E6 | C32: Lubrificantes E = (E1*E3*E4*30)/E2*E5 | D32: =(D27*D29*D30*30)/(D28*D31) -> 14.11315068
B34: F | C34: Pneus
B35: F1 | C35: Quilometragem do Contrato | D35: =D21*4 -> 10000
B36: F2 | C36: Vida do Pneu em quilômetros | D36: 45000
B37: F3 | C37: Quantidade de pneus | D37: 5
B38: F4 | C38: Preço do Pneu | D38: 777.56
B39: F5 | C39: Quantidade de dias do contrato | D39: =D31 -> 365
B40: F6 | C40: Pneus = (F1*F3*F4*30)/(F2*F5) | D40: =(D35*D37*D38*30)/(D36*D39) -> 71.01004566
B42: G | C42: Motorista
B43: G1 | C43: Salário com encargos sociais | D43: 1550.56
B45: H | C45: Custo Mensal
C46: Sem Motorista | D46: =D10+D14+D18+D24+D32+D40 -> 5089.06153
C47: Com Motorista | D47: =D10+D14+D18+D24+D32+D40+D43 -> 6639.62153
B49: I | C49: Custo Direto p/ km Rodado
C50: Sem Motorista | D50: =D46/D21 -> 2.035624612
C51: Com Motorista | D51: =D47/D21 -> 2.655848612
B53: J | C53: Preço cobrado pela empresa
B54: J1 | C54: Sem Motorista | D54: =D46*1.299 -> 6610.690927
B55: J2 | C55: Com Motorista | D55: =D47*1.299 -> 8624.868367
